[Event "Irish International Open 2019"]
[Site "Dublin"]
[Date "2019.04.17"]
[Round "1.7"]
[White "Hovhannisyan, Mher"]
[Black "Murphy, Sean"]
[Result "1-0"]
[ECO "E11"]
[WhiteElo "2462"]
[BlackElo "1976"]
[Annotator "RC"]
[PlyCount "69"]
[EventDate "2019.02.28"]
[EventType "swiss"]
[EventCountry "IRL"]
[SourceTitle "playchess.com"]
[Source "ChessBase"]
[SourceQuality "1"]
[TimeControl "5400+30"]

1. d4 {[%emt 0:00:00]} Nf6 {[%emt 0:00:00]} 2. Nf3 {[%emt 0:00:00]} d5 {[%emt 0:00:00]} 3. c4 {[%emt 0:00:00]} e6 {[%emt 0:00:58]} 4. g3 {[%emt 0:00:27]} Bb4+ {[%emt 0:01:29]} 5. Bd2 {[%emt 0:00:31]} Bxd2+ {[%emt 0:01:37]} 6. Nbxd2 {[%emt 0:00:10]} O-O {[%emt 0:00:13]} 7. Bg2 {[%emt 0:00:04]} c6 {[%emt 0:00:38]} 8. O-O {[%emt 0:00:28]} Nbd7 {[%emt 0:01:22]} 9. Qc2 {[%emt 0:00:40]} Re8 {[%emt 0:00:34]} 10. e4 {[%emt 0:01:32]} dxe4 {[%emt 0:08:04]} 11. Nxe4 {[%emt 0:00:06]} Nxe4 {[%emt 0:00:27]} 12. Qxe4 {[%emt 0:00:06]} Nf6 {[%emt 0:00:21]} 13. Qc2 {[%emt 0:00:26]} Bd7 {[%emt 0:01:33]} 14. Rfd1 {[%emt 0:04:48]} Qc7 {[%emt 0:00:22]} 15. c5 {[%emt 0:00:54]} Rad8 {[%emt 0:02:46]} 16. Ne5 {[%emt 0:00:38]} Bc8 {[%emt 0:02:26]} 17. b4 {[%emt 0:02:22]} Nd5 {[%emt 0:00:27]} 18. Rab1 {[%emt 0:02:54]} Qe7 {[%emt 0:06:30]} 19. Be4 {[%emt 0:00:57]} h5 {[%emt 0:05:57]} 20. Bh7+ {[%emt 0:02:06]} Kh8 {[%emt 0:04:37]} 21. Bg6 {[%emt 0:00:19]} Rf8 {[%emt 0:00:57]} 22. Bxf7 {[%emt 0:00:16]} Qxf7 {[%emt 0:03:00]} 23. Nxf7+ {[%emt 0:00:06]} Rxf7 {[%emt 0:00:08]} 24. Re1 {[%emt 0:00:45]} Rdf8 {[%emt 0:00:24]} 25. Re5 {[%emt 0:00:16]} Nf6 {[%emt 0:01:37]} 26. Qg6 {[%emt 0:00:27]} Kg8 {[%emt 0:00:29]} 27. Rb3 {[%emt 0:05:33]} Nd5 {[%emt 0:03:40]} 28. Rxh5 {[%emt 0:01:12]} Rf6 {[%emt 0:00:16]} 29. Qh7+ {[%emt 0:00:27]} Kf7 {[%emt 0:00:02]} 30. Rg5 {[%emt 0:00:59]} Ke8 {[%emt 0:00:39]} 31. f4 {[%emt 0:01:14]} Nxf4 {[%emt 0:01:40]} 32. gxf4 {[%emt 0:00:30]} Rxf4 {[%emt 0:00:02]} 33. Rb1 {[%emt 0:01:15]} e5 {[%emt 0:05:08]} 34. Qg6+ {[%emt 0:00:21]} Kd8 {[%emt 0:00:19]} 35. Qd6+ {[%emt 0:00:07]} 1-0

[Event "Irish International Open 2019"]
[Site "Dublin"]
[Date "2019.04.17"]
[Round "1.12"]
[White "Lundback, Anders"]
[Black "Longson, Alexander"]
[Result "0-1"]
[ECO "D27"]
[WhiteElo "1806"]
[BlackElo "2318"]
[Annotator "NA RC"]
[PlyCount "102"]
[EventDate "2019.02.28"]
[EventType "swiss"]
[EventCountry "IRL"]
[SourceTitle "playchess.com"]
[Source "ChessBase"]
[SourceQuality "1"]
[TimeControl "5400+30"]

{[%evp 29,94,12,32767,32767,27,-9,0,-11,22,-6,0,0,63,62,95,128,118,144,142,133,127,47,113,23,570,487,645,-95,-86,-92,0,-558,-555,-550,-588,-611,-445,-416,-469,-538,-581,-644,32767,-646,-774,32767,32767,32767,32767,32767,32767,32767,32767,32767,32767,32767,32767,32767,32767,32767,32767,32767,32767,-29985,-706,-5027,-1007]} 1. d4 {[%emt 1:30:30]} d5 {[%emt 1:30:30]} 2. c4 {[%emt 0:00:30]} dxc4 {[%emt 0:00:30]} 3. Nf3 {[%emt 0:00:30]} Nf6 {[%emt 0:00:30]} 4. e3 {[%emt 0:00:30]} e6 {[%emt 0:00:30]} 5. Bxc4 {[%emt 0:00:30]} c5 {[%emt 0:00:30]} 6. O-O {[%emt 0:00:30]} a6 {[%emt 0:00:30]} 7. a4 {[%emt 0:00:30]} Nc6 {[%emt 0:00:30]} 8. Nc3 {[%emt 0:00:30]} Be7 {[%emt 0:00:30]} 9. d5 {[%emt 0:00:30]} exd5 {[%emt 0:00:30] D27: Queen's Gambit Accepted: Classical main line: 7 e4!? and 7 a4} 10. Nxd5 {[%emt 0:00:30]} Nxd5 {[%emt 0:00:30]} 11. Bxd5 {[%emt 0:00:30]} Nb4 {[%emt 0:00:30]} 12. e4 {[%emt 0:00:30]} (12. Bc4 O-O 13. Bd2 Nc6 14. Bc3 Bg4 15. h3 Bh5 16. Qd5 Qxd5 17. Bxd5 {1-0 (53) Nguyen,T (2537)-Predke,A (2612) Biograd 2018}) 12... Nxd5 {[%emt 0:00:30]} 13. exd5 {[%emt 0:00:30]} O-O {[%emt 0:00:30]} 14. Ne5 {[%emt 0:00:30]} Bd7 $146 {[%emt 0:00:30]} ({Predecessor:} 14... Bd6 15. Nc4 Bxh2+ 16. Kxh2 Qh4+ 17. Kg1 Qxc4 {1-0 (61) Stark,G (1842)-Lutard,F (1860) France 2012}) 15. Re1 {[%emt 0:00:30]} Bf6 {[%emt 0:00:30]} 16. Bf4 {[%emt 0:00:30]} Re8 {[%emt 0:00:30]} 17. Rc1 {[%emt 0:00:30]} Rc8 {[%emt 0:00:30]} 18. h3 {[%emt 0:00:30]} b5 {[%emt 0:00:30]} 19. d6 {[%emt 0:00:30]} Bxe5 {[%emt 0:00:30]} 20. Bxe5 {[%emt 0:00:30]} Be6 {[%emt 0:00:30]} (20... Qg5 $11 21. f4 Qg3) 21. Rc3 {[%emt 0:00:30]} b4 {[%emt 0:00:30] [#]} 22. Rg3 $1 {[%emt 0:00:30]} f6 {[%emt 0:00:30]} 23. Bf4 {[%emt 0:00:30]} Qd7 {[%emt 0:00:30]} 24. Bh6 {[%emt 0:00:30]} g6 {[%emt 0:00:30]} 25. h4 {[%emt 0:00:30]} (25. Rf3 $16) 25... Kf7 {[%emt 0:00:30]} (25... Bf7 $14) 26. h5 {[%emt 0:00:30]} ({White should try} 26. Rge3 $16) 26... g5 $2 {[%emt 0:00:30] [#]} ({Better is} 26... Rcd8 $14) 27. Qf3 $1 {[%emt 0:00:30]} Bf5 {[%emt 0:00:30]} (27... Qxd6 $142 28. Rxg5 Rg8) 28. Re7+ $2 {[%emt 0:00:30]} (28. Qd5+ $18 Be6 {[#]} 29. Rxg5 $1 {[%mdl 512]} Bxd5 30. Rg7+ {[%mdl 64] Double Attack, Skewer} Kf8 31. Rxd7+ Kg8 32. Ree7 Rxe7 33. dxe7) 28... Rxe7 {[%emt 0:00:30]} 29. dxe7 {[%emt 0:00:30]} c4 {[%emt 0:00:30]} (29... Kxe7 $17 30. Bxg5 fxg5 31. Rxg5 Rf8 32. Qe3+ Be6 33. Qxc5+ (33. Rg7+ Rf7 $17) 33... Qd6 34. Qa7+ Bd7 35. Qe3+ Kd8) 30. Bf8 $2 {[%emt 0:00:30]} (30. Bxg5 $1 $11 {and White has nothing to worry.} Qd3 31. Be3) 30... c3 {[%emt 0:00:30]} 31. bxc3 {[%emt 0:00:30]} bxc3 {[%emt 0:00:30]} 32. e8=Q+ {[%emt 0:00:30]} Kxe8 {[%emt 0:00:30]} 33. Ba3 {[%emt 0:00:30]} c2 {[%emt 0:00:30]} 34. Qe2+ {[%emt 0:00:30]} Kf7 {[%emt 0:00:30]} 35. Kh2 {[%emt 0:00:30]} c1=Q {[%emt 0:00:30]} 36. Bxc1 {[%emt 0:00:30]} Rxc1 {[%emt 0:00:30]} 37. Re3 {[%emt 0:00:30]} Rc2 {[%emt 0:00:30]} 38. Qf3 {[%emt 0:00:30]} Rc8 {[%emt 0:00:30]} 39. h6 {[%emt 0:00:30]} Re8 {[%emt 0:00:30]} 40. Rb3 {[%emt 0:00:30]} Re7 {[%emt 0:00:30]} 41. a5 {[%emt 0:00:30]} Qc7+ {[%emt 0:00:30]} 42. g3 {[%emt 0:00:30]} Kg6 {[%emt 0:00:30]} 43. Rb6 {[%emt 0:00:30]} Re6 {[%emt 0:00:30]} 44. Rb7 {[%emt 0:00:30]} Qc6 {[%emt 0:00:30]} 45. Qb3 {[%emt 0:00:30]} Kxh6 {[%emt 0:00:30]} 46. Qb4 {[%emt 0:00:30]} Qd6 $19 {[%emt 0:00:30]} (46... Qf3 $142 47. Qf8+ {[#]} Kh5 $1 {[%mdl 512]} 48. Qf7+ Kg4 49. Rb4+ Re4 50. Rb2 Re1 51. Rb4+ Be4 52. Rxe4+ Qxe4 53. f3+ {[%mdl 64] Decoy} Kxf3 54. Qxf6+ Kg4 55. Qf1 Re2+ 56. Kg1 Rd2 57. Qf2 Rd1+ 58. Qf1 Kxg3 59. Qxd1 Qg2#) 47. Qc3 {[%emt 0:00:30]} Re2 {[%emt 0:00:30]} 48. Qf3 {[%emt 0:00:30]} Qe5 {[%emt 0:00:30]} 49. Rb6 {[%emt 0:00:30]} g4 {[%emt 0:00:30]} 50. Qa3 {[%emt 0:00:30]} Rxf2+ {[%emt 0:00:30]} 51. Kg1 {[%emt 0:00:30]} Qe1# {[%emt 0:00:30]} 0-1

[Event "Irish International Open 2019"]
[Site "Dublin"]
[Date "2019.04.17"]
[Round "1.24"]
[White "Whelan, Niall P."]
[Black "Buonanno, Raffaele"]
[Result "0-1"]
[ECO "B43"]
[WhiteElo "1620"]
[BlackElo "2091"]
[Annotator "NA RC"]
[PlyCount "103"]
[EventDate "2019.02.28"]
[EventType "swiss"]
[EventCountry "IRL"]
[SourceTitle "playchess.com"]
[Source "ChessBase"]
[SourceQuality "1"]
[TimeControl "5400+30"]

1. e4 {[%emt 0:00:00]} c5 {[%emt 0:00:29]} 2. Nf3 {[%emt 0:00:32]} e6 {[%emt 0:00:10]} 3. d4 {[%emt 0:01:45]} cxd4 {[%emt 0:00:21]} 4. Nxd4 {[%emt 0:00:02]} a6 {[%emt 0:00:08]} 5. Nc3 {[%emt 0:06:06]} Qc7 {[%emt 0:00:06]} 6. Bd3 {[%emt 0:01:51]} Nf6 {[%emt 0:00:59]} 7. a3 {[%emt 0:05:38]} b5 {[%emt 0:00:58] B43: Sicilian: Kan Variation: 5 Nc3} 8. Qe2 {[%emt 0:03:18]} (8. Nb3 Bb7 9. Qe2 Nc6 10. Be3 Ne5 11. f4 Nc4 12. Bxc4 bxc4 13. Nd2 Rc8 14. O-O Bc5 15. Kh1 Bxe3 16. Qxe3 {½-½ (67) Mezentsev,I (2298)-Markov,M (2368) Almaty 2019}) 8... d6 {[%emt 0:00:51]} 9. Bg5 {[%emt 0:05:43]} Be7 {[%emt 0:00:07]} 10. Rc1 $146 {[%emt 0:07:26]} ({Predecessor:} 10. O-O Nbd7 11. Kh1 Bb7 12. Be3 d5 13. exd5 Nxd5 14. Nxd5 Bxd5 15. c3 {1-0 (44) Komlosi,T (1894)-Molnar Saska,Z (1791) Hungary 2012}) 10... Bb7 {[%emt 0:02:10]} 11. O-O {[%emt 0:05:08]} O-O {[%emt 0:00:11]} 12. f4 {[%emt 0:07:42]} Nbd7 {[%emt 0:00:58]} 13. Nf3 {[%emt 0:06:33]} Nc5 {[%emt 0:02:20]} 14. e5 {[%emt 0:07:33]} dxe5 {[%emt 0:00:43]} 15. Nxe5 {[%emt 0:00:17]} Nxd3 {[%emt 0:00:39]} 16. Nxd3 {[%emt 0:00:56]} h6 {[%emt 0:07:53]} 17. Bxf6 {[%emt 0:05:56]} Bxf6 {[%emt 0:00:24]} 18. Ne5 {[%emt 0:00:14]} Rfd8 {[%emt 0:02:21]} 19. Rcd1 {[%emt 0:03:58]} Rac8 {[%emt 0:03:22]} 20. Rxd8+ {[%emt 0:02:34]} Rxd8 {[%emt 0:00:44]} 21. Rd1 {[%emt 0:00:06]} Qc5+ {[%emt 0:01:32]} 22. Kf1 {[%emt 0:01:01]} Rxd1+ {[%emt 0:02:15]} 23. Nxd1 {[%emt 0:00:10]} Qd4 {[%emt 0:00:51]} 24. Nd3 {[%emt 0:02:27]} Qd6 {[%emt 0:05:37]} 25. c3 {[%emt 0:05:08]} Bd5 {[%emt 0:02:21]} 26. Qe3 {[%emt 0:04:52]} Bc4 {[%emt 0:02:43]} 27. N1f2 {[%emt 0:00:26]} Bd8 {[%emt 0:00:11]} 28. Ke1 {[%emt 0:02:15]} Bb6 {[%emt 0:01:17]} 29. Qe5 {[%emt 0:00:45]} Qd8 {[%emt 0:01:31]} 30. Nc5 {[%emt 0:04:53]} f6 {[%emt 0:05:31]} 31. Qd4 {[%emt 0:00:35]} Qa8 {[%emt 0:03:54]} 32. Qe4 {[%emt 0:02:46]} Bd5 {[%emt 0:01:56]} 33. Qe3 {[%emt 0:00:11]} Bxc5 {[%emt 0:00:57]} 34. Qxc5 {[%emt 0:00:02]} Bxg2 {[%emt 0:00:06]} (34... Bc4 $142 35. Kd2 Qxg2) 35. Qb6 {[%emt 0:00:34]} Bd5 {[%emt 0:00:21]} 36. Nd3 {[%emt 0:01:54]} (36. Qe3 $142) 36... Bc4 {[%emt 0:00:14]} 37. Nf2 {[%emt 0:01:09]} Qf3 {[%emt 0:00:17]} 38. Qd8+ {[%emt 0:00:41]} Kh7 {[%emt 0:00:06]} 39. Qd2 {[%emt 0:00:13]} e5 {[%emt 0:00:41]} 40. fxe5 {[%emt 0:01:19] [#]} fxe5 {[%emt 0:00:13]} ({Black should try} 40... f5 $1 $19 41. h4 Kg6) 41. Qc2+ {[%emt 0:00:36]} Kh8 {[%emt 0:03:06]} 42. b3 $2 {[%emt 0:00:54]} (42. Qe4 $17 Qf6 43. Nd3) 42... Qe3+ {[%emt 0:00:35]} 43. Kd1 {[%emt 0:00:13]} Bd5 {[%emt 0:01:00]} 44. Qd2 {[%emt 0:03:42]} Bxb3+ {[%emt 0:00:06]} 45. Kc1 {[%emt 0:00:00]} Qf3 {[%emt 0:02:01]} 46. Qd8+ {[%emt 0:00:12]} Bg8 {[%emt 0:00:06]} 47. Qh4 {[%emt 0:00:38]} (47. Qd2 $19) 47... Qxc3+ {[%emt 0:00:12]} (47... Qe3+ $142 48. Kc2 Qe2+ 49. Kb1 Qe1+ 50. Kb2 Qd2+ 51. Kb1 Ba2+ 52. Ka1 Bb3 53. Qd8+ Qxd8 54. Kb2 Ba4 55. Ne4 Qd5 56. Ng5 Qd2+ {[%mdl 64] Double Attack} 57. Kb1 hxg5 58. Ka1 Bb3 59. Kb1 Qc2+ 60. Ka1 Qc1#) 48. Kd1 {[%emt 0:00:14]} Qa1+ {[%emt 0:02:00]} 49. Ke2 {[%emt 0:01:40]} Bc4+ {[%emt 0:00:29]} 50. Kf3 {[%emt 0:00:15]} Qxa3+ {[%emt 0:00:07]} 51. Kg2 {[%emt 0:00:15]} Bd5+ {[%emt 0:00:04]} 52. Kf1 $19 {[%emt 0:00:22]} 0-1

[Event "Irish International Open 2019"]
[Site "Dublin"]
[Date "2019.04.17"]
[Round "1.27"]
[White "Murray, David"]
[Black "Murray, Sam"]
[Result "1-0"]
[ECO "C10"]
[WhiteElo "2152"]
[BlackElo "1554"]
[Annotator "NA RC"]
[PlyCount "61"]
[EventDate "2019.02.28"]
[EventType "swiss"]
[EventCountry "IRL"]
[SourceTitle "playchess.com"]
[Source "ChessBase"]
[SourceQuality "1"]
[TimeControl "5400+30"]

1. e4 {[%emt 0:00:00]} e6 {[%emt 0:00:00]} 2. d4 {[%emt 0:00:00]} d5 {[%emt 0:00:02]} 3. Nd2 {[%emt 0:00:00]} dxe4 {[%emt 0:00:33]} 4. Nxe4 {[%emt 0:00:02]} Nd7 {[%emt 0:00:03]} 5. c4 {[%emt 0:01:00]} Ngf6 {[%emt 0:00:21]} 6. Nc3 {[%emt 0:00:16] C10: French with 3 Nc3: Unusual Black 3rd moves and 3...dxe4} Bb4 {[%emt 0:00:42]} (6... b6 7. Nf3 Bb7 8. Be2 Bd6 9. O-O O-O 10. Nb5 Re8 11. Bg5 h6 12. Bh4 Bf4 13. Bg3 Bxg3 14. hxg3 {½-½ (29) Bartel,M (2618)-Grachev,B (2652) Khanty-Mansiysk 2009}) 7. Bd3 {[%emt 0:01:30]} O-O {[%emt 0:00:19]} 8. Nf3 {[%emt 0:00:46]} c5 {[%emt 0:01:01]} 9. a3 {[%emt 0:02:08]} Bxc3+ {[%emt 0:01:56]} 10. bxc3 {[%emt 0:00:08]} b6 {[%emt 0:00:29]} 11. O-O {[%emt 0:02:38]} Bb7 {[%emt 0:01:43]} 12. Re1 $146 {[%emt 0:01:09]} ({Predecessor:} 12. Bf4 Rc8 13. Qe2 {1-0 (41) Wojciechowski,P (2279)-Parczewski,J (2023) Warsaw 2009}) 12... Re8 {[%emt 0:01:25]} 13. a4 {[%emt 0:02:19]} Qc7 {[%emt 0:03:08]} 14. Ne5 {[%emt 0:01:52]} Nxe5 {[%emt 0:04:20]} 15. dxe5 {[%emt 0:00:38]} Qc6 {[%emt 0:01:43]} 16. f3 {[%emt 0:00:30]} Nd7 {[%emt 0:00:29]} 17. Qc2 {[%emt 0:02:23]} Nf8 {[%emt 0:00:17]} 18. Qf2 {[%emt 0:04:51]} Rad8 {[%emt 0:02:31]} 19. Bc2 {[%emt 0:01:57]} Qc7 {[%emt 0:06:40]} 20. a5 {[%emt 0:06:18]} Bc6 {[%emt 0:03:54]} 21. Bg5 {[%emt 0:01:30]} Rd7 {[%emt 0:03:04]} 22. Qg3 {[%emt 0:03:47]} Ng6 {[%emt 0:04:05]} 23. h4 {[%emt 0:03:07]} f6 {[%emt 0:08:06]} 24. Bxg6 {[%emt 0:02:54]} hxg6 {[%emt 0:00:07]} 25. Bf4 {[%emt 0:00:17]} f5 {[%emt 0:01:47]} 26. Qxg6 {[%emt 0:02:02]} Rd3 {[%emt 0:02:00]} 27. axb6 {[%emt 0:02:10]} axb6 {[%emt 0:00:18]} 28. Ra3 {[%emt 0:01:28]} Qd7 {[%emt 0:02:52]} 29. Rea1 {[%emt 0:07:42]} Rxc3 {[%emt 0:03:10]} 30. Ra7 {[%emt 0:08:36]} Bb7 {[%emt 0:02:33] [#]} 31. Rxb7 {[%emt 0:00:54] NOTEXT-4834} 1-0

[Event "Irish International Open 2019"]
[Site "Dublin"]
[Date "2019.04.18"]
[Round "2.1"]
[White "Melaugh, Shane"]
[Black "Epishin, Vladimir"]
[Result "0-1"]
[ECO "A85"]
[WhiteElo "2105"]
[BlackElo "2568"]
[Annotator "ChessBase"]
[PlyCount "136"]
[EventDate "2019.02.28"]
[EventType "swiss"]
[EventCountry "IRL"]
[SourceTitle "playchess.com"]
[Source "ChessBase"]
[SourceQuality "1"]
[TimeControl "5400+30"]

1. c4 {[%emt 0:00:00]} e6 {[%emt 0:00:47]} 2. Nc3 {[%emt 0:00:00]} Bb4 {[%emt 0:01:02]} 3. d4 {[%emt 0:02:19]} f5 {[%emt 0:04:28]} 4. g3 {[%emt 0:09:19]} Nf6 {[%emt 0:02:39]} 5. Bg2 {[%emt 0:00:05]} Ne4 {[%emt 0:03:51]} 6. Qd3 {[%emt 0:01:02]} d5 {[%emt 0:00:23]} 7. cxd5 {[%emt 0:03:36]} exd5 {[%emt 0:01:14]} 8. Nh3 {[%emt 0:00:14]} c6 {[%emt 0:03:04]} 9. O-O {[%emt 0:00:24]} O-O {[%emt 0:00:37]} 10. f3 {[%emt 0:02:07]} Nd6 {[%emt 0:01:57]} 11. Nf4 {[%emt 0:03:20]} Re8 {[%emt 0:04:24]} 12. a3 {[%emt 0:05:35]} Ba5 {[%emt 0:02:38]} 13. b4 {[%emt 0:01:39]} Bb6 {[%emt 0:00:04]} 14. Be3 {[%emt 0:04:32]} Nd7 {[%emt 0:01:31]} 15. Bf2 {[%emt 0:00:18]} Nf8 {[%emt 0:00:55]} 16. e4 {[%emt 0:01:16]} dxe4 {[%emt 0:12:11]} 17. fxe4 {[%emt 0:03:05]} fxe4 {[%emt 0:05:15]} 18. Nxe4 {[%emt 0:00:39]} Ne6 {[%emt 0:11:20]} 19. Nxe6 {[%emt 1:00:00]} Bxe6 {[%emt 0:00:54]} 20. Rac1 {[%emt 0:00:00]} Bd5 {[%emt 0:01:42]} 21. Nc5 {[%emt 0:00:00]} Qg5 {[%emt 0:06:12]} 22. Rfe1 {[%emt 0:00:00]} Bxg2 {[%emt 0:02:57]} 23. Kxg2 {[%emt 0:00:00]} Qd5+ {[%emt 0:00:39]} 24. Qf3 {[%emt 0:00:00]} Qxf3+ {[%emt 0:05:43]} 25. Kxf3 {[%emt 0:00:00]} Rad8 {[%emt 0:00:35]} 26. Re5 {[%emt 0:00:00]} Bxc5 {[%emt 0:04:50]} 27. Rxe8+ {[%emt 0:00:00]} Nxe8 {[%emt 0:00:10]} 28. bxc5 {[%emt 0:00:00]} Nf6 {[%emt 0:00:03]} 29. Rb1 {[%emt 0:00:00]} Rd7 {[%emt 0:00:10]} 30. g4 {[%emt 0:00:00]} Rf7 {[%emt 0:02:30]} 31. Bg3 {[%emt 0:00:00]} Nd5+ {[%emt 0:01:50]} 32. Kg2 {[%emt 0:00:00]} Ne3+ {[%emt 0:02:01]} 33. Kh3 {[%emt 0:00:00]} Nc2 {[%emt 0:02:22]} 34. Rd1 {[%emt 0:00:00]} Rd7 {[%emt 0:03:38]} 35. Rd3 {[%emt 0:00:00]} Kf7 {[%emt 0:04:51]} 36. Be5 {[%emt 0:00:00]} Ke6 {[%emt 0:00:17]} 37. a4 {[%emt 0:00:00]} Kd5 {[%emt 0:00:42]} 38. Rc3 {[%emt 0:00:00]} Nxd4 {[%emt 0:00:39]} 39. Bxd4 {[%emt 0:00:00]} Kxd4 {[%emt 0:00:01]} 40. Rc1 {[%emt 0:00:00]} Re7 {[%emt 0:01:57]} 41. Kg3 {[%emt 0:00:00]} g5 {[%emt 0:00:51]} 42. a5 {[%emt 0:00:00]} a6 {[%emt 0:01:49]} 43. Kf3 {[%emt 0:00:00]} h6 {[%emt 0:00:24]} 44. Rc2 {[%emt 0:00:00]} Re3+ {[%emt 0:00:59]} 45. Kf2 {[%emt 0:00:11]} Rh3 {[%emt 0:01:01]} 46. Kf1 {[%emt 0:00:35]} Rb3 {[%emt 0:01:13]} 47. Rf2 {[%emt 0:00:33]} Rb5 {[%emt 0:01:02]} 48. Rf6 {[%emt 0:00:12]} Rxa5 {[%emt 0:00:21]} 49. Rxh6 {[%emt 0:00:07]} Rxc5 {[%emt 0:00:04]} 50. h4 {[%emt 0:00:32]} gxh4 {[%emt 0:00:35]} 51. Rxh4 {[%emt 0:00:02]} Ke4 {[%emt 0:01:03]} 52. g5+ {[%emt 0:00:54]} Kf5 {[%emt 0:00:55]} 53. Rh7 {[%emt 0:00:07]} Rb5 {[%emt 0:00:45]} 54. Rg7 {[%emt 0:00:08]} a5 {[%emt 0:00:09]} 55. Rg8 {[%emt 0:00:06]} a4 {[%emt 0:00:13]} 56. g6 {[%emt 0:00:05]} Kf6 {[%emt 0:00:22]} 57. g7 {[%emt 0:00:09]} Kf7 {[%emt 0:00:07]} 58. Ra8 {[%emt 0:00:04]} Kxg7 {[%emt 0:00:09]} 59. Rxa4 {[%emt 0:00:04]} Kf6 {[%emt 0:00:14]} 60. Ke2 {[%emt 0:00:04]} Ke5 {[%emt 0:00:11]} 61. Kd3 {[%emt 0:00:04]} Rd5+ {[%emt 0:00:13]} 62. Kc3 {[%emt 0:00:07]} Kd6 {[%emt 0:00:10]} 63. Ra8 {[%emt 0:00:13]} b5 {[%emt 0:00:08]} 64. Rh8 {[%emt 0:00:10]} Re5 {[%emt 0:00:16]} 65. Rh4 {[%emt 0:00:09]} c5 {[%emt 0:00:21]} 66. Rh8 {[%emt 0:00:06]} Re3+ {[%emt 0:00:09]} 67. Kc2 {[%emt 0:00:07]} b4 {[%emt 0:00:17]} 68. Rh5 {[%emt 0:00:04]} Kc6 {[%emt 0:00:10]} 0-1

[Event "Irish International Open 2019"]
[Site "Dublin"]
[Date "2019.04.18"]
[Round "2.2"]
[White "Saric, Ante"]
[Black "Murray, David"]
[Result "1-0"]
[ECO "A34"]
[WhiteElo "2530"]
[BlackElo "2152"]
[Annotator "ChessBase"]
[PlyCount "65"]
[EventDate "2019.02.28"]
[EventType "swiss"]
[EventCountry "IRL"]
[SourceTitle "playchess.com"]
[Source "ChessBase"]
[SourceQuality "1"]
[TimeControl "5400+30"]

1. Nf3 {[%emt 0:00:00]} Nf6 {[%emt 0:07:03]} 2. c4 {[%emt 0:00:00]} c5 {[%emt 0:00:13]} 3. Nc3 {[%emt 0:00:08]} Nc6 {[%emt 0:00:15]} 4. g3 {[%emt 0:00:07]} d5 {[%emt 0:02:23]} 5. d4 {[%emt 0:00:09]} cxd4 {[%emt 0:02:26]} 6. Nxd4 {[%emt 0:00:08]} dxc4 {[%emt 0:05:41]} 7. Nxc6 {[%emt 0:00:11]} Qxd1+ {[%emt 0:00:14]} 8. Nxd1 {[%emt 0:00:30]} bxc6 {[%emt 0:00:06]} 9. Bg2 {[%emt 0:00:35]} Nd5 {[%emt 0:02:39]} 10. Ne3 {[%emt 0:00:22]} e6 {[%emt 0:02:40]} 11. Nxc4 {[%emt 0:00:56]} Ba6 {[%emt 0:01:53]} 12. b3 {[%emt 0:02:00]} Bb4+ {[%emt 0:03:34]} 13. Bd2 {[%emt 0:00:16]} O-O {[%emt 0:02:49]} 14. Rc1 {[%emt 0:05:54]} Bxd2+ {[%emt 0:09:26]} 15. Nxd2 {[%emt 0:02:34]} Nf6 {[%emt 0:14:51]} 16. Nc4 {[%emt 0:06:45]} Rac8 {[%emt 0:08:43]} 17. Na5 {[%emt 0:09:41]} c5 {[%emt 0:02:03]} 18. Nc6 {[%emt 0:12:01]} Rc7 {[%emt 0:00:56]} 19. Rxc5 {[%emt 0:02:51]} Rfc8 {[%emt 0:06:36]} 20. O-O {[%emt 0:08:10]} Kf8 {[%emt 0:02:51]} 21. b4 {[%emt 0:07:38]} Bxe2 {[%emt 0:03:33]} 22. Re1 {[%emt 0:05:32]} Ba6 {[%emt 0:01:03]} 23. Ra5 {[%emt 0:03:38]} Bb7 {[%emt 0:08:36]} 24. Nxa7 {[%emt 0:09:09]} Rc1 {[%emt 0:01:46]} 25. Kf1 {[%emt 0:03:09]} Bxg2+ {[%emt 0:02:22]} 26. Kxg2 {[%emt 0:01:51]} Rxe1 {[%emt 0:00:39]} 27. Nxc8 {[%emt 0:00:03]} Rb1 {[%emt 0:01:48]} 28. b5 {[%emt 0:00:35]} Nd5 {[%emt 0:01:19]} 29. a4 {[%emt 0:00:55]} Ke8 {[%emt 0:00:41]} 30. Ra7 {[%emt 0:00:52]} Kd8 {[%emt 0:01:30]} 31. Nd6 {[%emt 0:00:29]} Rb4 {[%emt 0:00:56]} 32. Nxf7+ {[%emt 0:01:06]} Kc8 {[%emt 0:00:15]} 33. Nd6+ {[%emt 0:00:31]} 1-0

[Event "Irish International Open 2019"]
[Site "Dublin"]
[Date "2019.04.18"]
[Round "2.3"]
[White "Buonanno, Raffaele"]
[Black "Burg, Twan"]
[Result "0-1"]
[ECO "E39"]
[WhiteElo "2091"]
[BlackElo "2519"]
[Annotator "ChessBase"]
[PlyCount "68"]
[EventDate "2019.02.28"]
[EventType "swiss"]
[EventCountry "IRL"]
[SourceTitle "playchess.com"]
[Source "ChessBase"]
[SourceQuality "1"]
[TimeControl "5400+30"]

1. d4 {[%emt 1:30:30]} e6 {[%emt 1:30:30]} 2. c4 {[%emt 0:00:30]} Nf6 {[%emt 0:00:30]} 3. Nc3 {[%emt 0:00:30]} Bb4 {[%emt 0:00:30]} 4. Qc2 {[%emt 0:00:30]} c5 {[%emt 0:00:30]} 5. dxc5 {[%emt 0:00:30]} O-O {[%emt 0:00:30]} 6. Bg5 {[%emt 0:00:30]} Na6 {[%emt 0:00:30]} 7. a3 {[%emt 0:00:30]} Bxc5 {[%emt 0:00:30]} 8. Nf3 {[%emt 0:00:30]} b6 {[%emt 0:00:30]} 9. e3 {[%emt 0:00:30]} Bb7 {[%emt 0:00:30]} 10. Be2 {[%emt 0:00:30]} h6 {[%emt 0:00:30]} 11. Bh4 {[%emt 0:00:30]} Be7 {[%emt 0:00:30]} 12. O-O {[%emt 0:00:30]} Nc5 {[%emt 0:00:30]} 13. Rfd1 {[%emt 0:00:30]} Rc8 {[%emt 0:00:30]} 14. Nd4 {[%emt 0:00:30]} Nfe4 {[%emt 0:00:30]} 15. Bxe7 {[%emt 0:00:30]} Qxe7 {[%emt 0:00:30]} 16. f3 {[%emt 0:00:30]} Nxc3 {[%emt 0:00:30]} 17. Qxc3 {[%emt 0:00:30]} d5 {[%emt 0:00:30]} 18. b4 {[%emt 0:00:30]} Nd7 {[%emt 0:00:30]} 19. Qb3 {[%emt 0:00:30]} Ne5 {[%emt 0:00:30]} 20. cxd5 {[%emt 0:00:30]} Bxd5 {[%emt 0:00:30]} 21. Qb2 {[%emt 0:00:30]} Qg5 {[%emt 0:00:30]} 22. e4 {[%emt 0:00:30]} Nc4 {[%emt 0:00:30]} 23. Bxc4 {[%emt 0:00:30]} Bxc4 {[%emt 0:00:30]} 24. Qf2 {[%emt 0:00:30]} Qe5 {[%emt 0:00:30]} 25. Rd2 {[%emt 0:00:30]} Ba6 {[%emt 0:00:30]} 26. Qe3 {[%emt 0:00:30]} Rc4 {[%emt 0:00:30]} 27. f4 {[%emt 0:00:30]} Qc7 {[%emt 0:00:30]} 28. Qg3 {[%emt 0:00:30]} Rc3 {[%emt 0:00:30]} 29. Qg4 {[%emt 0:00:30]} Rc1+ {[%emt 0:00:30]} 30. Rxc1 {[%emt 0:00:30]} Qxc1+ {[%emt 0:00:30]} 31. Rd1 {[%emt 0:00:30]} Qxa3 {[%emt 0:00:30]} 32. f5 {[%emt 0:00:30]} Qe3+ {[%emt 0:00:30]} 33. Kh1 {[%emt 0:00:30]} Rd8 {[%emt 0:00:30]} 34. f6 {[%emt 0:00:30]} Qg5 {[%emt 0:00:30]} 0-1